fUST/lending_fUST_20250717
["ID","MTS","AMOUNT","RATE_DAILY","PERIOD"]
[372579692,1752691850043,-460.0,0.00021095,2]
[372579693,1752691850053,-657.78,0.00021095,2]
[372579694,1752691850062,-736.37,0.00021095,2]
[372579695,1752691850073,-707.16,0.00021095,2]
[372579696,1752691850082,-1707.87,0.00021095,2]
[372579697,1752691850092,-460.0,0.00021095,2]
[372579698,1752691850102,-460.0,0.00021095,2]
[372579699,1752691850112,-672.05,0.00021095,2]
[372579700,1752691850122,-460.0,0.00021095,2]
[372579701,1752691850132,-460.0,0.00021095,2]
[372579702,1752691850142,-754.8,0.00021095,2]
[372579703,1752691850151,-2035.47,0.00021095,2]
[372579704,1752691850160,-2856.91,0.00021095,2]
[372579705,1752691850170,-460.0,0.00021095,2]
[372579706,1752691850179,-1429.59,0.00021095,2]
[372579707,1752691850189,-694.94,0.00021095,2]
[372579708,1752691850198,-558.04,0.00021095,2]
[372579709,1752691850207,-460.0,0.00021095,2]
[372579710,1752691850217,-1651.48,0.00021095,2]
[372579711,1752691850227,-819.02,0.00021095,2]
[372579712,1752691850236,-460.0,0.00021095,2]
[372579713,1752691850245,-524.37,0.00021095,2]
[372579714,1752691850255,-460.0,0.00021095,2]
[372579715,1752691850264,-2569.94,0.00021095,2]
[372579716,1752691850274,-301.82657253,0.00021095,2]
[372579717,1752691850283,-2591.26,0.00021095,2]
[372579718,1752691850295,-604.35,0.00021095,2]
[372579719,1752691850305,-546.21,0.00021095,2]
[372579720,1752691850315,-854.66,0.00021095,2]
[372579721,1752691850325,-460.0,0.00021095,2]
[372579722,1752691850335,-2805.27,0.00021095,2]
[372579723,1752691850344,-460.0,0.00021095,2]
[372579724,1752691850354,-460.0,0.00021095,2]
[372579725,1752691850364,-159.7314836,0.0002112,2]
[372579726,1752691850375,-159.7314836,0.0002112,2]
[372579727,1752691850384,-159.7314836,0.0002112,2]
[372579728,1752691850394,-5902.78850771,0.00021141,4]
[372579729,1752691850403,-153.0,0.00021191,2]
[372579730,1752691850412,-153.0,0.00021191,2]
[372579731,1752691850422,-260.0,0.00021228,2]
[372579732,1752691850431,-5902.78850771,0.00021348,5]
[372579733,1752691850442,-2500.0,0.00021364,2]
[372579734,1752691850451,-460.0,0.00021369,2]
[372579735,1752691850461,-575.44,0.00021369,2]
[372579736,1752691850471,-460.0,0.00021369,2]
[372579737,1752691850481,-567.87,0.00021369,2]
[372579738,1752691850491,-243.51,0.00021369,2]
[372579739,1752691850501,-460.0,0.00021369,2]
[372579740,1752691850510,-466.78,0.00021369,2]
[372579741,1752691850519,-460.0,0.00021369,2]
[372579742,1752691850529,-634.38,0.00021369,2]
[372579743,1752691850538,-635.4,0.00021369,2]
[372579744,1752691850549,-460.0,0.00021369,2]
[372579745,1752691850558,-479.04,0.00021369,2]
[372579746,1752691850568,-716.68,0.00021369,2]
[372579747,1752691850580,-460.0,0.00021369,2]
[372579748,1752691850589,-534.92980233,0.00021369,2]
[372579749,1752691850599,-861.28,0.00021369,2]
[372579750,1752691850609,-460.0,0.00021369,2]
[372579751,1752691850618,-460.0,0.00021369,2]
[372579752,1752691850628,-569.61,0.00021369,2]
[372579753,1752691850638,-3294.4,0.00021369,2]
[372579754,1752691850648,-460.0,0.00021369,2]
[372579755,1752691850657,-480.7,0.00021369,2]
[372579756,1752691850667,-417.90135542,0.00021369,2]
[372579757,1752691850676,-490.68,0.00021369,2]
[372579758,1752691850685,-1119.71,0.00021369,2]
[372579759,1752691850699,-460.0,0.00021369,2]
[372579760,1752691850709,-2035.33,0.00021369,2]
[372579761,1752691850718,-460.0,0.00021369,2]
[372579762,1752691850729,-460.0,0.00021369,2]
[372579763,1752691850738,-947.11,0.00021369,2]
[372579764,1752691850747,-1036.43,0.00021369,2]
[372579765,1752691850756,-1338.37,0.00021369,2]
[372579766,1752691850766,-4639.56,0.00021369,2]
[372579767,1752691850776,-857.94,0.00021369,2]
[372579768,1752691850785,-6797.45,0.00021369,2]
[372579769,1752691850797,-626.62,0.00021369,2]
[372579770,1752691850807,-2073.7,0.00021369,2]
[372579771,1752691850816,-460.0,0.00021369,2]
[372579772,1752691850826,-1017.05,0.00021369,2]
[372579773,1752691850835,-4815.32,0.00021369,2]
[372579774,1752691850845,-460.0,0.00021369,2]
[372579775,1752691850854,-4790.96,0.00021369,2]
[372579776,1752691850864,-460.0,0.00021369,2]
[372579777,1752691850873,-657.78,0.00021369,2]
[372579778,1752691850883,-736.37,0.00021369,2]
[372579779,1752691850892,-707.16,0.00021369,2]
[372579780,1752691850901,-1707.87,0.00021369,2]
[372579781,1752691850911,-460.0,0.00021369,2]
[372579782,1752691850920,-460.0,0.00021369,2]
[372579783,1752691850929,-672.05,0.00021369,2]
[372579784,1752691850939,-460.0,0.00021369,2]
[372579785,1752691850948,-460.0,0.00021369,2]
[372579786,1752691850957,-754.8,0.00021369,2]
[372579787,1752691850967,-2035.47,0.00021369,2]
[372579788,1752691850976,-2856.91,0.00021369,2]
[372579789,1752691850986,-460.0,0.00021369,2]
[372579790,1752691850995,-1429.59,0.00021369,2]
[372579791,1752691851004,-694.94,0.00021369,2]
[372579792,1752691851014,-558.04,0.00021369,2]
[372579793,1752691851023,-460.0,0.00021369,2]
[372579794,1752691851035,-1651.48,0.00021369,2]
[372579795,1752691851047,-819.02,0.00021369,2]
[372579796,1752691851056,-460.0,0.00021369,2]
[372579797,1752691851066,-524.37,0.00021369,2]
[372579798,1752691851077,-460.0,0.00021369,2]
[372579799,1752691851087,-2569.94,0.00021369,2]
[372579800,1752691851096,-2591.26,0.00021369,2]
[372579801,1752691851106,-604.35,0.00021369,2]
[372579802,1752691851117,-546.21,0.00021369,2]
[372579803,1752691851137,-854.66,0.00021369,2]
[372579804,1752691851150,-460.0,0.00021369,2]
[372579805,1752691851161,-2805.27,0.00021369,2]
[372579806,1752691851182,-460.0,0.00021369,2]
[372579807,1752691851192,-460.0,0.00021369,2]
[372579808,1752691851202,-466.12425394,0.00021455,2]
[372579809,1752691851212,-700.0,0.00021504,2]
[372579810,1752691851221,-429.1687796,0.00021507,2]
[372579811,1752691851230,-429.1687796,0.00021507,2]
[372579812,1752691851239,-500.81020057,0.00021533,2]
[372579813,1752691851248,-500.0,0.00021533,2]
[372579814,1752691851258,-500.0,0.00021533,2]
[372579815,1752691851267,-500.0,0.00021533,2]
[372579816,1752691851277,-500.0,0.00021533,2]
[372579817,1752691851287,-500.0,0.00021533,2]
[372579818,1752691851299,-500.0,0.00021533,2]
[372579819,1752691851308,-500.0,0.00021533,2]
[372579820,1752691851318,-500.0,0.00021533,2]
[372579821,1752691851327,-500.0,0.00021533,2]
[372579822,1752691851337,-500.0,0.00021533,2]
[372579823,1752691851346,-5902.78850771,0.00021555,5]
[372579824,1752691851355,-500.0,0.00021565,2]
[372579825,1752691851365,-460.0,0.00021643,2]
[372579826,1752691851374,-575.44,0.00021643,2]
[372579827,1752691851384,-460.0,0.00021643,2]
[372579828,1752691851394,-460.0,0.00021643,2]
[372579829,1752691851403,-466.78,0.00021643,2]
[372579830,1752691851413,-460.0,0.00021643,2]
[372579831,1752691851422,-634.38,0.00021643,2]
[372579832,1752691851432,-635.4,0.00021643,2]
[372579833,1752691851442,-460.0,0.00021643,2]
[372579834,1752691851451,-479.04,0.00021643,2]
[372579835,1752691851461,-716.68,0.00021643,2]
[372579836,1752691851470,-460.0,0.00021643,2]
[372579837,1752691851479,-861.28,0.00021643,2]
[372579838,1752691851489,-460.0,0.00021643,2]
[372579839,1752691851498,-460.0,0.00021643,2]
[372579840,1752691851507,-569.61,0.00021643,2]
[372579841,1752691851516,-3294.4,0.00021643,2]
[372579842,1752691851525,-460.0,0.00021643,2]
[372579843,1752691851535,-480.7,0.00021643,2]
[372579844,1752691851547,-490.68,0.00021643,2]
[372579845,1752691851557,-1119.71,0.00021643,2]
[372579846,1752691851566,-460.0,0.00021643,2]
[372579847,1752691851588,-2035.33,0.00021643,2]
[372579848,1752691851597,-460.0,0.00021643,2]
[372579849,1752691851607,-460.0,0.00021643,2]
[372579850,1752691851617,-947.11,0.00021643,2]
[372579851,1752691851627,-1036.43,0.00021643,2]
[372579852,1752691851637,-1338.37,0.00021643,2]
[372579853,1752691851647,-4639.56,0.00021643,2]
[372579854,1752691851657,-857.94,0.00021643,2]
[372579855,1752691851666,-6797.45,0.00021643,2]
[372579856,1752691851676,-626.62,0.00021643,2]
[372579857,1752691851686,-2073.7,0.00021643,2]
[372579858,1752691851696,-460.0,0.00021643,2]
[372579859,1752691851706,-1017.05,0.00021643,2]
[372579860,1752691851716,-4815.32,0.00021643,2]
[372579861,1752691851726,-460.0,0.00021643,2]
[372579862,1752691851918,-4790.96,0.00021643,2]
[372579863,1752691851928,-460.0,0.00021643,2]
[372579864,1752691851939,-657.78,0.00021643,2]
[372579865,1752691851948,-736.37,0.00021643,2]
[372579866,1752691851958,-707.16,0.00021643,2]
[372579867,1752691851968,-1707.87,0.00021643,2]
[372579868,1752691851978,-460.0,0.00021643,2]
[372579869,1752691851988,-460.0,0.00021643,2]
[372579870,1752691851998,-672.05,0.00021643,2]
[372579871,1752691852007,-460.0,0.00021643,2]
[372579872,1752691852017,-460.0,0.00021643,2]
[372579873,1752691852027,-754.8,0.00021643,2]
[372579874,1752691852039,-2035.47,0.00021643,2]
[372579875,1752691852050,-2856.91,0.00021643,2]
[372579876,1752691852059,-460.0,0.00021643,2]
[372579877,1752691852069,-1429.59,0.00021643,2]
[372579878,1752691852078,-694.94,0.00021643,2]
[372579879,1752691852087,-460.0,0.00021643,2]
[372579880,1752691852097,-819.02,0.00021643,2]
[372579881,1752691852107,-1651.48,0.00021643,2]
[372579882,1752691852116,-460.0,0.00021643,2]
[372579883,1752691852126,-524.37,0.00021643,2]
[372579884,1752691852139,-460.0,0.00021643,2]
[372579885,1752691852149,-2569.94,0.00021643,2]
[372579886,1752691852159,-2591.26,0.00021643,2]
[372579887,1752691852168,-604.35,0.00021643,2]
[372579888,1752691852177,-546.21,0.00021643,2]
[372579889,1752691852187,-854.66,0.00021643,2]
[372579890,1752691852197,-460.0,0.00021643,2]
[372579891,1752691852207,-2805.27,0.00021643,2]
[372579892,1752691852216,-460.0,0.00021643,2]
[372579893,1752691852226,-460.0,0.00021643,2]
[372579894,1752691852236,-1265.4384141,0.00021699,2]
[372579895,1752691852245,-153.0,0.00021739,2]
[372579896,1752691852256,-153.0,0.00021739,2]
[372579897,1752691852266,-306.7085644,0.00021739,2]
[372579898,1752691852276,-5902.78850771,0.00021762,5]
[372579899,1752691852286,-360.0,0.00021776,2]
[372579900,1752691852298,-159.7314836,0.00021808,2]
[372579901,1752691852307,-159.7314836,0.00021808,2]
[372579902,1752691852317,-355.982031,0.00021808,2]
[372579903,1752691852327,-1715.355789,0.0002181,8]
[372579904,1752691852337,-500.0,0.0002183,2]
[372579905,1752691852346,-355.920824,0.00021836,2]
[372579906,1752691852357,-159.7314836,0.00021863,2]
[372579907,1752691852368,-159.7314836,0.00021863,2]
[372579908,1752691852378,-159.7314836,0.00021863,2]
[372579909,1752691852388,-159.7314836,0.00021863,2]
[372579910,1752691852398,-159.7314836,0.00021863,2]
[372579911,1752691852408,-159.7314836,0.00021863,2]
[372579912,1752691852418,-159.7314836,0.00021863,2]
[372579913,1752691852427,-159.7314836,0.00021863,2]
[372579914,1752691852438,-159.7314836,0.00021863,2]
[372579915,1752691852449,-1153.7302062,0.00021863,2]
[372579916,1752691852459,-576.8651031,0.00021863,2]
[372579917,1752691852469,-576.8651031,0.00021863,2]
[372579918,1752691852481,-576.8651031,0.00021863,2]
[372579919,1752691852490,-576.8651031,0.00021863,2]
[372579920,1752691852500,-576.8651031,0.00021863,2]
[372579921,1752691852510,-576.8651031,0.00021863,2]
[372579922,1752691852520,-576.8651031,0.00021863,2]
[372579923,1752691852530,-576.8651031,0.00021863,2]
[372579924,1752691852541,-576.8651031,0.00021863,2]
[372579925,1752691852551,-576.8651031,0.00021863,2]
[372579926,1752691852561,-576.8651031,0.00021863,2]
[372579927,1752691852572,-3020.1310627,0.00021882,2]
[372579928,1752691852582,-356.043238,0.0002189,2]
[372579929,1752691852594,-151.0,0.000219,4]
[372579930,1752691852604,-3000.0,0.00021912,2]
[372579931,1752691852614,-151.0,0.00021916,2]
[372579932,1752691852623,-151.0,0.00021916,2]
[372579933,1752691852633,-200.877626,0.00021916,2]
[372579934,1752691852643,-200.877626,0.00021916,2]
[372579935,1752691852864,-151.0,0.00021916,2]
[372579936,1752691852874,-648.256436,0.00021916,2]
[372579937,1752691852884,-648.256436,0.00021916,2]
[372579938,1752691852894,-513.069827,0.00021916,2]
[372579939,1752691852904,-513.069827,0.00021916,2]
[372579940,1752691852914,-460.0,0.00021917,2]
[372579941,1752691852924,-1421.256571,0.00021917,2]
[372579942,1752691852933,-1421.256571,0.00021917,2]
[372579943,1752691852943,-151.0,0.00021917,2]
[372579944,1752691852953,-575.44,0.00021917,2]
[372579945,1752691852963,-250.99433971,0.00021917,2]
[372579946,1752691852972,-460.0,0.00021917,2]
[372579947,1752691852982,-466.78,0.00021917,2]
[372579948,1752691852991,-460.0,0.00021917,2]
[372579949,1752691853001,-634.38,0.00021917,2]
[372579950,1752691853011,-635.4,0.00021917,2]
[372579951,1752691853022,-460.0,0.00021917,2]
[372579952,1752691853034,-479.04,0.00021917,2]
[372579953,1752691853045,-716.68,0.00021917,2]
[372579954,1752691853055,-460.0,0.00021917,2]
[372579955,1752691853066,-861.28,0.00021917,2]
[372579956,1752691853078,-460.0,0.00021917,2]
[372579957,1752691853089,-460.0,0.00021917,2]
[372579958,1752691853100,-569.61,0.00021917,2]
[372579959,1752691853112,-3294.4,0.00021917,2]
[372579960,1752691853124,-460.0,0.00021917,2]
[372579961,1752691853134,-480.7,0.00021917,2]
[372579962,1752691853145,-490.68,0.00021917,2]
[372579963,1752691853156,-1119.71,0.00021917,2]
[372579964,1752691853167,-460.0,0.00021917,2]
[372579965,1752691853178,-2035.33,0.00021917,2]
[372579966,1752691853190,-460.0,0.00021917,2]
[372579967,1752691853202,-460.0,0.00021917,2]
[372579968,1752691853213,-947.11,0.00021917,2]
[372579969,1752691853228,-1036.43,0.00021917,2]
[372579970,1752691853240,-1338.37,0.00021917,2]
[372579971,1752691853252,-4639.56,0.00021917,2]
[372579972,1752691853262,-857.94,0.00021917,2]
[372579973,1752691853284,-6797.45,0.00021917,2]
[372579974,1752691853299,-626.62,0.00021917,2]
[372579975,1752691853309,-2073.7,0.00021917,2]
[372579976,1752691853320,-460.0,0.00021917,2]
[372579977,1752691853330,-1017.05,0.00021917,2]
[372579978,1752691853341,-4815.32,0.00021917,2]
[372579979,1752691853351,-460.0,0.00021917,2]
[372579980,1752691853361,-4790.96,0.00021917,2]
[372579981,1752691853372,-460.0,0.00021917,2]
[372579982,1752691853382,-657.78,0.00021917,2]
[372579983,1752691853393,-736.37,0.00021917,2]
[372579984,1752691853403,-707.16,0.00021917,2]
[372579985,1752691853413,-1707.87,0.00021917,2]
[372579986,1752691853424,-460.0,0.00021917,2]
[372579987,1752691853435,-460.0,0.00021917,2]
[372579988,1752691853445,-672.05,0.00021917,2]
[372579989,1752691853456,-500.0,0.00021917,2]
[372579990,1752691853466,-500.0,0.00021917,2]
[372579991,1752691853477,-500.0,0.00021917,2]
[372579992,1752691853487,-500.0,0.00021917,2]
[372579993,1752691853499,-460.0,0.00021917,2]
[372579994,1752691853510,-500.0,0.00021917,2]
[372579995,1752691853520,-500.0,0.00021917,2]
[372579996,1752691853531,-536.59,0.00021917,2]
[372579997,1752691853543,-460.0,0.00021917,2]
[372579998,1752691853553,-754.8,0.00021917,2]
[372579999,1752691853563,-2035.47,0.00021917,2]
[372580000,1752691853574,-2856.91,0.00021917,2]
[372580001,1752691853584,-294.86,0.00021917,2]
[372580002,1752691853594,-1429.59,0.00021917,2]
[372580003,1752691853604,-694.94,0.00021917,2]
[372580004,1752691853614,-460.0,0.00021917,2]
[372580005,1752691853624,-1651.48,0.00021917,2]
[372580006,1752691853634,-819.02,0.00021917,2]
[372580007,1752691853643,-460.0,0.00021917,2]
[372580008,1752691853654,-524.37,0.00021917,2]
[372580009,1752691853663,-460.0,0.00021917,2]
[372580010,1752691853674,-2569.94,0.00021917,2]
[372580011,1752691853684,-2591.26,0.00021917,2]
[372580012,1752691853694,-604.35,0.00021917,2]
[372580013,1752691853704,-546.21,0.00021917,2]
[372580014,1752691853714,-854.66,0.00021917,2]
[372580015,1752691853724,-2805.27,0.00021917,2]
[372580016,1752691853734,-516.3,0.00021917,2]
[372580017,1752691853744,-220.97,0.00021917,2]
[372580018,1752691853754,-460.0,0.00021917,2]
[372580019,1752691853763,-153.0,0.00021918,2]
[372580020,1752691853773,-153.0,0.00021918,2]
[372580021,1752691853783,-153.0,0.00021918,2]
[372580022,1752691853795,-153.0,0.00021918,2]
[372580023,1752691853805,-153.0,0.00021918,2]
[372580024,1752691853815,-153.0,0.00021918,2]
[372580025,1752691853825,-153.0,0.00021918,2]
[372580026,1752691853835,-153.0,0.00021918,2]
[372580027,1752691853845,-153.0,0.00021918,2]
[372580028,1752691853855,-153.0,0.00021918,2]
[372580029,1752691853865,-153.0,0.00021918,2]
[372580030,1752691853875,-153.0,0.00021918,2]
[372580031,1752691853885,-153.0,0.00021918,2]
[372580032,1752691853895,-153.0,0.00021918,2]
[372580033,1752691853904,-153.0,0.00021918,2]
[372580034,1752691853914,-153.0,0.00021918,2]
[372580035,1752691853923,-153.0,0.00021918,2]
[372580036,1752691853934,-153.0,0.00021918,2]
[372580037,1752691853943,-153.0,0.00021918,2]
[372580038,1752691853953,-153.0,0.00021918,2]
[372580039,1752691853964,-153.0,0.00021918,2]
[372580040,1752691853975,-153.0,0.00021918,2]
[372580041,1752691853986,-153.0,0.00021918,2]
[372580042,1752691853996,-153.0,0.00021918,2]
[372580043,1752691854006,-153.0,0.00021918,2]
[372580044,1752691854016,-153.0,0.00021918,2]
[372580045,1752691854031,-153.0,0.00021918,2]
[372580046,1752691854042,-153.0,0.00021918,2]
[372580047,1752691854053,-153.0,0.00021918,2]
[372580048,1752691854063,-153.0,0.00021918,2]
[372580049,1752691854073,-153.0,0.00021918,2]
[372580050,1752691854083,-153.0,0.00021918,2]
[372580051,1752691854092,-153.0,0.00021918,2]
[372580052,1752691854102,-153.0,0.00021918,2]
[372580053,1752691854112,-153.0,0.00021918,2]
[372580054,1752691854121,-153.0,0.00021918,2]
[372580055,1752691854131,-153.0,0.00021918,2]
[372580056,1752691854140,-153.0,0.00021918,2]
[372580057,1752691854150,-153.0,0.00021918,2]
[372580058,1752691854159,-153.0,0.00021918,2]
[372580059,1752691854169,-153.0,0.00021918,2]
[372580060,1752691854179,-153.0,0.00021918,2]
[372580061,1752691854188,-153.0,0.00021918,2]
[372580062,1752691854198,-153.0,0.00021918,2]
[372580063,1752691854208,-153.0,0.00021918,2]
[372580064,1752691854218,-153.0,0.00021918,2]
[372580065,1752691854228,-200.0,0.00021918,2]
[372580066,1752691854238,-151.0,0.00021918,7]
[372580067,1752691854248,-200.877626,0.00021918,7]
[372580068,1752691854258,-200.877626,0.00021918,7]
[372580069,1752691854267,-151.0,0.00021918,7]
[372580070,1752691854277,-648.256436,0.00021918,7]
[372580071,1752691854286,-648.256436,0.00021918,7]
[372580072,1752691854298,-513.069827,0.00021918,7]
[372580073,1752691854308,-513.069827,0.00021918,7]
[372580074,1752691854318,-158.03292145,0.0002192,4]
[372580075,1752691854327,-159.13686405,0.0002192,4]
[372580076,1752691854338,-159.7314836,0.00021942,2]
[372580077,1752691854347,-319.4054301,0.00021942,2]
[372580078,1752691854357,-318.626446,0.00021942,2]
[372580079,1752691854367,-1153.7302062,0.00021942,2]
[372580080,1752691854376,-1153.7302062,0.00021942,2]
[372580081,1752691854386,-576.8651031,0.00021942,2]
[372580082,1752691854396,-576.8651031,0.00021942,2]
[372580083,1752691854406,-576.8651031,0.00021942,2]
[372580084,1752691854415,-576.8651031,0.00021942,2]
[372580085,1752691854426,-178.021619,0.00021942,2]
[372580086,1752691854438,-178.021619,0.00021942,2]
[372580087,1752691854448,-178.021619,0.00021942,2]
[372580088,1752691854460,-178.021619,0.00021942,2]
[372580089,1752691854471,-175.5576257,0.00021942,2]
[372580090,1752691854481,-151.0,0.0002196,7]
[372580091,1752691854491,-5902.78850771,0.00021969,6]
[372580092,1752691854502,-500.0,0.00021973,2]
[372580093,1752691854513,-500.0,0.00021973,2]
[372580094,1752691854523,-150000.0,0.00021973,2]
[372580095,1752691854533,-150000.0,0.00021973,2]
[372580096,1752691854546,-150000.0,0.00021973,2]
[372580097,1752691854556,-319.2903559,0.00021976,2]
[372580098,1752691854566,-319.4629672,0.00021976,2]
[372580099,1752691854576,-644.555628,0.00021986,2]
[372580100,1752691854585,-1153.7302062,0.00021986,2]
[372580101,1752691854595,-178.021619,0.00021986,2]
[372580102,1752691854605,-178.021619,0.00021986,2]
[372580103,1752691854615,-178.021619,0.00021986,2]
[372580104,1752691854625,-355.982031,0.00021986,2]
[372580105,1752691854636,-178.021619,0.00021986,2]
[372580106,1752691854647,-178.021619,0.00021986,2]
[372580107,1752691854657,-178.021619,0.00021986,2]
[372580108,1752691854667,-178.021619,0.00021986,2]
[372580109,1752691854677,-151.0,0.00021999,7]
[372580110,1752691854687,-1421.256571,0.00021999,7]
[372580111,1752691854699,-1421.256571,0.00021999,7]
[372580112,1752691854714,-1421.256571,0.00022,7]
[372580113,1752691854725,-1421.256571,0.00022,7]
[372580114,1752691854735,-151.0,0.00022,7]
[372580115,1752691854745,-3618.08,0.00022,7]
[372580116,1752691854755,-200.877626,0.00022,7]
[372580117,1752691854764,-200.877626,0.00022,7]
[372580118,1752691854774,-161.343582,0.00022,7]
[372580119,1752691854784,-648.256436,0.00022,7]
[372580120,1752691854796,-648.256436,0.00022,7]
[372580121,1752691854805,-38130.45,0.00022,7]
[372580122,1752691854815,-513.069827,0.00022,7]
[372580123,1752691854826,-513.069827,0.00022,7]
[372580124,1752691854836,-259.48036,0.00022,14]
[372580125,1752691854846,-151.0,0.00022,7]
[372580126,1752691854856,-214.40824756,0.00022,7]
[372580127,1752691854866,-192.0,0.00022,2]
[372580128,1752691854876,-3020.1310628,0.00022022,2]
[372580129,1752691854886,-1000.0,0.00022081,2]
[372580130,1752691854898,-1000.0,0.00022081,2]
[372580131,1752691854911,-1000.0,0.00022081,2]
[372580132,1752691854920,-1000.0,0.00022081,2]
[372580133,1752691854930,-1000.0,0.00022081,2]
[372580134,1752691854941,-500.0,0.00022081,2]
[372580135,1752691854951,-1000.0,0.00022081,2]
[372580136,1752691854961,-1000.0,0.00022081,2]
[372580137,1752691854971,-1119.00537372,0.00022081,2]
[372580138,1752691854981,-875.3518451,0.00022082,2]
[372580139,1752691854991,-410.3,0.00022097,5]
[372580140,1752691855001,-151.0,0.000221,7]
[372580141,1752691855011,-151.0,0.000221,7]
[372580142,1752691855022,-200.877626,0.000221,7]
[372580143,1752691855033,-200.877626,0.000221,7]
[372580144,1752691855043,-648.256436,0.000221,7]
[372580145,1752691855052,-648.256436,0.000221,7]
[372580146,1752691855062,-513.069827,0.000221,7]
[372580147,1752691855072,-513.069827,0.000221,7]
[372580148,1752691855083,-151.0,0.00022107,7]
[372580149,1752691855093,-151.0,0.00022107,7]
[372580150,1752691855104,-1000.0,0.00022113,2]
[372580151,1752691855115,-466.12425394,0.00022156,2]
[372580152,1752691855125,-5902.78850771,0.00022176,6]
[372580153,1752691855135,-259.48036,0.00022176,6]
[372580154,1752691855145,-460.0,0.00022191,2]
[372580155,1752691855155,-575.44,0.00022191,2]
[372580156,1752691855164,-460.0,0.00022191,2]
[372580157,1752691855174,-466.78,0.00022191,2]
[372580158,1752691855184,-460.0,0.00022191,2]
[372580159,1752691855193,-634.38,0.00022191,2]
[372580160,1752691855203,-635.4,0.00022191,2]
[372580161,1752691855212,-460.0,0.00022191,2]
[372580162,1752691855222,-479.04,0.00022191,2]
[372580163,1752691855231,-716.68,0.00022191,2]
[372580164,1752691855241,-460.0,0.00022191,2]
[372580165,1752691855250,-861.28,0.00022191,2]
[372580166,1752691855402,-460.0,0.00022191,2]
[372580167,1752691855411,-259.48036,0.00022191,2]
[372580168,1752691855421,-460.0,0.00022191,2]
[372580169,1752691855430,-569.61,0.00022191,2]
[372580170,1752691855440,-3294.4,0.00022191,2]
[372580171,1752691855449,-460.0,0.00022191,2]
[372580172,1752691855459,-480.7,0.00022191,2]
[372580173,1752691855468,-490.68,0.00022191,2]
[372580174,1752691855478,-1119.71,0.00022191,2]
[372580175,1752691855487,-460.0,0.00022191,2]
[372580176,1752691855497,-2035.33,0.00022191,2]
[372580177,1752691855506,-460.0,0.00022191,2]
[372580178,1752691855516,-460.0,0.00022191,2]
[372580179,1752691855525,-947.11,0.00022191,2]
[372580180,1752691855534,-1036.43,0.00022191,2]
[372580181,1752691855544,-1338.37,0.00022191,2]
[372580182,1752691855553,-4639.56,0.00022191,2]
[372580183,1752691855563,-857.94,0.00022191,2]
[372580184,1752691855572,-6797.45,0.00022191,2]
[372580185,1752691855582,-626.62,0.00022191,2]
[372580186,1752691855591,-2073.7,0.00022191,2]
[372580187,1752691855601,-460.0,0.00022191,2]
[372580188,1752691855611,-1017.05,0.00022191,2]
[372580189,1752691855620,-4815.32,0.00022191,2]
[372580190,1752691855630,-460.0,0.00022191,2]
[372580191,1752691855640,-4790.96,0.00022191,2]